Cogmind - Beta 14 @@@ ROGUE MODE // 2024.09.12 @ 17:57:14 Player: Dull Result: Destroyed by 4Z-09Z(R) with Subdweller Laser Performance ------------- Evolutions (0) 0 Regions Visited (3) 600 Robots Destroyed (18) 90 Value Destroyed (345) 345 Prototype IDs (0) 0 Alien Tech Used (0) 0 Bonus (90) 90 TOTAL SCORE: 1125 Bonus ------- Follower Combat Kills 90 Cogmind --------- Core Integrity 0/250 Matter 219/300 Energy 90/100 System Corruption 0% Temperature Cool (6) Movement Rolling (120) Ox1 Location -10/Subcaves Parts ------- > --- POWER (1) -------- (None) > --- PROPULSION (2) --- Spiked Treads Subdweller Monowheel > --- UTILITY (2) ------ Large Storage Unit Targeting Computer > --- WEAPON (2) ------- Assault Rifle Slug Cannon > --- INVENTORY (15) --- Ion Engine Ion Engine Wheel Improved Heat Sink High-capacity Matter Pod (200) Subdweller Optics Experimental Sensor Array Improved Terrain Scanner Targeting Computer Tractor Beam Grenade Launcher Rocket Launcher Mining Claw Peak State ------------ > --- POWER ------------ (None) > --- PROPULSION ------- Spiked Treads Subdweller Monowheel > --- UTILITY ---------- Large Storage Unit Targeting Computer > --- WEAPON ----------- Assault Rifle Slug Cannon > --- INVENTORY -------- Ion Engine Ion Engine Wheel Improved Heat Sink High-capacity Matter Pod Subdweller Optics Experimental Sensor Array Improved Terrain Scanner Targeting Computer Tractor Beam Grenade Launcher Rocket Launcher Mining Claw [Rating: 13] Favorites ----------- Power Ion Engine Engine Ion Engine Propulsion Light Treads Treads Light Treads Leg Aluminum Leg Wheel Wheel Utility Targeting Computer Device Improved Terrain Scanner Storage Large Storage Unit Processor Targeting Computer Weapon Assault Rifle Ballistic Gun Assault Rifle Ballistic Cannon Slug Cannon Build | -11 -10 -10 -10 ------- Run | Yrd Mat Min Sub Slots Evolved . | . . . . Power . | . . . . Propulsion . | . . . . Utility . | . . . . Weapon . | . . . . Parts Attached 21 | 4 6 7 4 Power 3 | . 1 2 . Engine 3 | . 1 2 . Core . | . . . . Reactor . | . . . . Propulsion 10 | 3 1 4 2 Treads 5 | 3 1 . 1 Leg . | . . . . Wheel 5 | . . 4 1 Hover . | . . . . Flight . | . . . . Utility 3 | 1 2 . . Device 1 | 1 . . . Storage 1 | . 1 . . Processor 1 | . 1 . . Hackware . | . . . . Protection . | . . . . Artifact . | . . . . Weapon 5 | . 2 1 2 Energy Gun . | . . . . Energy Cannon . | . . . . Ballistic Gun 4 | . 2 1 1 Ballistic Cannon 1 | . . . 1 Launcher . | . . . . Special Weapon . | . . . . Impact Weapon . | . . . . Slashing Weapon . | . . . . Piercing Weapon . | . . . . Special Melee Weapon . | . . . . Unidentified Prototypes . | . . . . Parts Lost 3 | . . . 3 Power 1 | . . . 1 Propulsion . | . . . . Utility . | . . . . Weapon 2 | . . . 2 Highest Loss Streak 3 | . . . 3 To Critical Strikes . | . . . . Average Slot Usage (%) 93 | . 94 91 98 Engine 13 | . 14 14 12 Treads 16 | . 23 8 12 Wheel 5 | . . 11 15 Storage 14 | . 14 14 14 Processor 13 | . 13 14 14 Ballistic Gun 28 | . 28 28 28 Peak Build Rating 13 | 9 9 10 13 Average Rating 8 | 6 7 8 11 On Entrance 8 | 6 9 7 10 Naked Turns . | . . . . Heaviest Build 29 | 13 29 29 27 Greatest Support 40 | 40 40 20 20 Greatest Overweight (x) 2 | . 1 2 2 Average Overweight (x) . | . . 1 1 Largest Inventory Capacity 15 | 8 15 15 15 Average Capacity 14 | 8 14 15 15 Most Carried 15 | 6 15 15 15 Average Carried 14 | 6 14 14 14 Final Capacity 15 | 8 15 15 15 Final Carried 15 | 6 15 15 13 Class Distribution -------------------- 100% | Mutant Dominant Class ---------------- Mutant | -10/Materials Mutant | -10/Mines Mutant | -10/Subcaves Resources | -11 -10 -10 -10 ----------- Run | Yrd Mat Min Sub Matter Collected 650 | 268 248 100 34 Remotely . | . . . . Salvage Created 643 | 93 550 . . Parts 37 | 6 31 . . Haulers Intercepted 1 | . 1 . . Recyclers Shooed 2 | 1 1 . . Parts Field Recycled . | . . . . Retrieved Matter . | . . . . Parts Self-Destructed 3 | . . . 3 Prevented . | . . . . Kills | -11 -10 -10 -10 ------- Run | Yrd Mat Min Sub Combat Hostiles Destroyed 11 | . 10 1 . Guns 11 | . 10 1 . Classes Destroyed 8 | 2 5 1 . Worker 1 | . 1 . . Tunneler 2 | 2 . . . Hauler 1 | . 1 . . Recycler 3 | 1 2 . . Operator 1 | . 1 . . Swarmer 3 | . 3 . . Grunt 7 | . 7 . . Assembled 1 | . . 1 . Best Kill Streak 3 | 2 3 1 . Combat Bots Only 2 | . 2 1 . Max Kills in Single Turn 1 | 1 1 1 . Gunslinging . | . . . . Exploded . | . . . . Melee . | . . . . Uniques/NPCs Destroyed . | . . . . Combat | -11 -10 -10 -10 -------- Run | Yrd Mat Min Sub Hostile Shots Fired 89 | . 48 4 37 Missed 26 | . 14 . 12 Damage Taken 1081 | . 352 144 585 Core 270 | . 90 16 164 Absorbed by Shields . | . . . . Core Remaining (%) 100 | 100 . . . Volleys Fired 94 | 14 60 5 15 Largest 2 | 2 2 2 2 Hottest 68 | 40 40 40 68 Shots Fired 187 | 28 120 10 29 Gun 186 | 28 120 10 28 Cannon 1 | . . . 1 Launcher . | . . . . Special . | . . . . Kinetic 187 | 28 120 10 29 Thermal . | . . . . Explosive . | . . . . Electromagnetic . | . . . . Robot Hit Streak 19 | 7 19 3 10 Robot Miss Streak 4 | 2 3 4 1 Penetration Max . | . . . . Secondary Targets . | . . . . Shots Hit Robots 137 | 21 86 5 25 Core Hits 43 | 5 34 1 3 Critical Kills 1 | . 1 . . Critical Parts Destroyed 1 | 1 . . . Critical Strikes 2 | 1 1 . . Destroy 2 | 1 1 . . Melee Attacks . | . . . . Impact . | . . . . Slashing . | . . . . Piercing . | . . . . Sneak Attacks . | . . . . Combat Hostiles . | . . . . Follow-up Attacks . | . . . . Damage Inflicted 1221 | 176 835 67 143 Guns 1221 | 176 835 67 143 Cannons . | . . . . Explosions . | . . . . Melee . | . . . . Ramming . | . . . . Kinetic 1221 | 176 835 67 143 Thermal . | . . . . Explosive . | . . . . Electromagnetic . | . . . . Impact . | . . . . Slashing . | . . . . Piercing . | . . . . Highest Corruption . | . . . . Average Corruption . | . . . . Corruption Purged . | . . . . Corruption Blocked . | . . . . Overload Shots . | . . . . Overflow Damage . | . . . . Projectiles . | . . . . Explosions . | . . . . Melee . | . . . . Knockbacks . | . . . . Impact . | . . . . Kinetic . | . . . . Secondary . | . . . . Self-Inflicted Damage . | . . . . Shots . | . . . . Rammed . | . . . . Targets Rammed . | . . . . Kicked . | . . . . Crushed . | . . . . Highest Temperature 18 | . 18 2 . Average Temperature 8 | . 8 2 . Received Heat Transfer 222 | . 135 15 72 Siege Activations . | . . . . Robots Corrupted . | . . . . Combat Hostiles . | . . . . Parts Fried . | . . . . Impact Corruptions . | . . . . Robots Melted . | . . . . Combat Hostiles . | . . . . Parts Melted . | . . . . Heat Transferred . | . . . . Parts Sabotaged . | . . . . Parts Stolen . | . . . . Parts Stripped . | . . . . Power Chain Reactions . | . . . . Alert | -11 -10 -10 -10 ------- Run | Yrd Mat Min Sub Peak Influence 207 | 15 207 5 . Initial 9 | . 9 5 . Average 33 | 6 55 1 . Maximum Alert Level 1 | . 1 . . Low Security (%) 99 | 100 99 100 . Level 1 . | . . . . Level 2 . | . . . . Level 3 . | . . . . Level 4 . | . . . . Level 5 . | . . . . High Security . | . . . . Max Security . | . . . . Squads Dispatched 2 | . 2 . . Investigation 1 | . 1 . . Extermination . | . . . . Reinforcement 1 | . 1 . . Assault . | . . . . Garrison . | . . . . Intercept . | . . . . Searches Triggered . | . . . . Construction Impeded . | . . . . Haulers Reinforced . | . . . . Active Scanning Responses . | . . . . Cargo Convoy Interrupts . | . . . . Stealth | -11 -10 -10 -10 --------- Run | Yrd Mat Min Sub Distress Signals 2 | . 2 . . Communications Jammed . | . . . . Distress Signals . | . . . . Times Spotted 39 | . 33 2 4 Peak Tracking Total 4 | . 4 1 2 Tactical Retreats 1 | . 1 . . Traps | -11 -10 -10 -10 ------- Run | Yrd Mat Min Sub Traps Triggered 3 | . 2 . 1 Indirectly . | . . . . Trap Hack Attempts . | . . . . Triggered . | . . . . Disarmed 6 | . 6 . . Reprogrammed . | . . . . Reused . | . . . . Traps Extracted . | . . . . Installed . | . . . . Triggered . | . . . . Machines | -11 -10 -10 -10 ---------- Run | Yrd Mat Min Sub Machines Disabled . | . . . . Max in Single Turn . | . . . . Machines Repaired . | . . . . Machines Dismantled . | . . . . Machines Sabotaged . | . . . . Overloaded Fab Kills . | . . . . Hacking | -11 -10 -10 -10 --------- Run | Yrd Mat Min Sub Machines Accessed 8 | . 8 . . Terminals 6 | . 6 . . Fabricators . | . . . . Repair Stations . | . . . . Recycling Units 2 | . 2 . . Scanalyzers . | . . . . Garrison Access . | . . . . Total Hacks 17 | . 17 . . Successful 9 | . 9 . . Failed 8 | . 8 . . Catastrophic . | . . . . Database Lockouts . | . . . . Manual 14 | . 14 . . Terminals 9 | . 9 . . Fabricators . | . . . . Repair Stations . | . . . . Recycling Units 8 | . 8 . . Scanalyzers . | . . . . Garrison Access . | . . . . Terminal Hacks 5 | . 5 . . Branch Access Points 1 | . 1 . . Terminal Index 1 | . 1 . . Alert Level 1 | . 1 . . Disarm Traps 1 | . 1 . . Recall Investigation 1 | . 1 . . Fabricator Hacks . | . . . . Repair Station Hacks . | . . . . Recycling Unit Hacks . | . . . . Scanalyzer . | . . . . Garrison Access Hacks . | . . . . Unauthorized Hacks 4 | . 4 . . Terminals . | . . . . Fabricators . | . . . . Repair Stations . | . . . . Recycling Units 4 | . 4 . . Reject 2 | . 2 . . Mask 2 | . 2 . . Scanalyzers . | . . . . Garrison Access . | . . . . Data Cores Recovered . | . . . . Used . | . . . . Hacking Detections 5 | . 5 . . Full Trace Events . | . . . . Feedback Events . | . . . . Feedback Blocked . | . . . . Robot Schematics Acquired . | . . . . Robots Built . | . . . . Authchips . | . . . . Time . | . . . . Total Robot Build Rating . | . . . . Part Schematics Acquired . | . . . . Parts Built . | . . . . Authchips . | . . . . Time . | . . . . Total Part Build Rating . | . . . . Parts Repaired . | . . . . Time . | . . . . Parts Recycled . | . . . . Recycled Matter . | . . . . Retrieved Matter . | . . . . Retrieved Components . | . . . . Parts Scanalyzed . | . . . . Part Schematics Acquired . | . . . . Parts Damaged . | . . . . Bothacking | -11 -10 -10 -10 ------------ Run | Yrd Mat Min Sub Used RIF Installer . | . . . . Robots Hacked . | . . . . Non-combat . | . . . . Combat . | . . . . Robot Hacks Applied . | . . . . Relay Couplers Released . | . . . . Fabnet Peak Effective % . | . . . . Robots Rewired . | . . . . Allies Hacked . | . . . . Hacks Repelled . | . . . . Allies | -11 -10 -10 -10 -------- Run | Yrd Mat Min Sub Total Allies 3 | . . 3 . Largest Group 3 | . . 3 3 Highest-Rated Group 40 | . . 40 40 Highest-Rated Ally 16 | . . 16 16 Total Orders 1 | . . 1 . AID 1 | . . 1 . Ally Attacks 82 | . . 17 65 Total Damage 385 | . . 148 237 Kills 5 | . . 2 3 Allies Corrupted . | . . . . Allies Melted . | . . . . Intel | -11 -10 -10 -10 ------- Run | Yrd Mat Min Sub Robot Analysis Total . | . . . . Derelict Logs Recovered 2 | . . 1 1 Drone Launches . | . . . . Drone Recoveries . | . . . . Exploration | -11 -10 -10 -10 ------------- Run | Yrd Mat Min Sub Turns Passed 3538 | 84 1948 1309 197 Spaces Moved 1865 | 27 931 788 119 Core . | . . . . Treads 1217 | 27 931 259 . Legs . | . . . . Wheels 648 | . . 529 119 Hover . | . . . . Flight . | . . . . Fastest Speed 95 | 160 160 95 95 Average Speed 161 | 160 183 142 117 Slowest Speed 240 | 160 240 240 120 Overloaded Moves . | . . . . Propulsion Burnouts . | . . . . Robots Hopped . | . . . . Cave-ins Triggered . | . . . . Exploration Rate (%) 53 | 3 98 101 11 Regions Visited 3 Branch Regions 2 Pre-discovered Areas 1 | . . 1 . Known Exits Taken 1 | . 1 . . Unknown Exits Taken 2 | 1 . 1 . Scrap Searched 1 | . . 1 . Spaces Dug . | . . . . Terrain Destroyed . | . . . . Melee . | . . . . Projectile . | . . . . AOE . | . . . . Terrain Rammed . | . . . . Walls Destroyed . | . . . . Machines Disabled . | . . . . Actions | -11 -10 -10 -10 --------- Run | Yrd Mat Min Sub Total 2235 | 44 1077 966 148 Wait 211 | . 52 152 7 Move 1862 | 26 930 787 119 Hop . | . . . . Pick Up 23 | . 16 6 1 Fast Attach 2 | 1 1 . . Attach 3 | . . 1 2 Detach . | . . . . Swap 16 | 3 5 6 2 Drop 24 | . 13 9 2 Fire 94 | 14 60 5 15 Melee . | . . . . Ram . | . . . . Kick . | . . . . Crush . | . . . . Escape Stasis . | . . . . Rewire . | . . . . Trap . | . . . . Miscellaneous . | . . . . Route ------- -11/Scrapyard -10/Materials (discovered 6 exits: [*Mat x3] / *Min x2 / [*Sub]) -10/Mines (discovered 3 exits: [*Mat x2] / [*Sub]) -10/Subcaves History --------- Turn | Location | Event 6 | -11/Scrapyard | Discovered new exit (range 2) 85 | -11/Scrapyard | Entered Materials 309 | -10/Materials | Discovered new exit (range 16) 317 | -10/Materials | Build established: Mutant 396 | -10/Materials | Discovered new exit (range 16) 679 | -10/Materials | Discovered new exit (range 15) 948 | -10/Materials | Identified exit to Mines 1199 | -10/Materials | Discovered new exit (range 8) 1829 | -10/Materials | Discovered new exit (range 5) 2033 | -10/Materials | Entered Mines 2041 | -10/Mines | Assisted by bots powering up and referring to "LRC-V3" 2117 | -10/Mines | A weapon hastily lodged in a ceiling crevice suddenly fell to the ground 2366 | -10/Mines | Assembled infested the area 2796 | -10/Mines | Discovered new exit (range 10) 2882 | -10/Mines | Discovered new exit (range 15) 2894 | -10/Mines | Found a damaged Exp. Sensor Array with a note attached 2896 | -10/Mines | Found Prototype Device 3170 | -10/Mines | Received a Rocket Launcher from a helpful Derelict 3177 | -10/Mines | Learned location of Zion (-6) 3310 | -10/Mines | Discovered new exit (range 6) 3342 | -10/Mines | Entered Subcaves 3342 | -10/Subcaves | Accompanied by 3 allies 3353 | -10/Subcaves | Core integrity fell below 50% 3373 | -10/Subcaves | Learned 2 Materials zone layouts 3513 | -10/Subcaves | Core integrity fell below 20% 3539 | -10/Subcaves | Destroyed by 4Z-09Z(R) with Subdweller Laser Last Messages --------------- 03337_ Dropped Aluminum Leg. 03339_ Acquired Wheel. LOCATION=UNKNOWN AMBIENT_HEAT=-10 GOAL=ESCAPE 03355_ GJ-W4E(R) destroyed. 03358_ NG-2NT(R) destroyed. 03361_ Acquired Spk. Treads. 03363_ Acquired 34 matter. 03366_ Dropped Wheel. 03366_ Acquired Sub. Optics. 03373_ Acquired derelict log, extracted data. Data stored: Materials zone layouts (x2). 03378_ Dropped Wheel. 03380_ Subatomizers dissect the Sub. Power Source. 03488_ Triggered Shrapnel Trap. 03488_ An expanding cloud of shrapnel blasts out in all directions. 03506_ Assault Rifle destroyed. 03514_ Lgt. Ion Engine destroyed. 03533_ Assault Rifle destroyed. Map ----- +----------------------------------------------------+ | ???????????????????????????????????????? | | ???????????????????????????????????????? | | ???????????????????????????????????????? | | ???????????????????????????????????????? | | ???????????????????????????????????????? | | ???????????????????????????????????????? | | ???????????????????????????????????????? | | ???????????????????????????????????????? | | ????????????????????????? #????????????? | | ???????????????####????? #????????????? | | ???????????????# #???? #?????????????? | | ???????????????# #??? ##????????????? | | ??#$ ?????????## #### #????????????? | | ??#$ $????????# # ###???????????? | | ??# ???#####" ##??????????? | | ??# $ ??# #" #??????????? | | ???$ ??# #??????????? | | ????? "?# ####????????? | | ??????? "## #" ###### ##???????? | | ????""??#"""g;" ###### #???????? | | ???""" "# ; ###### #????????? | | ??# """" ;# ##### #????????? | | ??#" &" # # #????????? | | ??#"" "" ;# ## #????????? | | ???# " "" ##R ### ##????????? | | ???############@ #?# ###?????????? | | ??????????????# #?# ##??????????? | | ??????????????## #?# #####??####? | | ???????????????## ### #### ## | | ???????????????## ## # | | ???????????????# ## | | ???????????????## ####?# | | ????????????????## ##?????# | | ?????????????????## #?????## | | ??????????????????# ### ####### | | ?????????????????## ### | | ?????????????????# ## | | ?????????????????## #### | | ??????????????????#### #??# | | ?????????????????????# ## | | ????????????????????# | | ????????????????????# ## | | ????????????????????##?# ## | | ???????????????????????## ########## | | ????????????????????????#######????????? | | ???????????????????????????????????????? | | ???????????????????????????????????????? | | ???????????????????????????????????????? | | ???????????????????????????????????????? | | ???????????????????????????????????????? | +----------------------------------------------------+ Best States ------------- Heat Dissipation 25 Energy Generation 10 Energy Capacity 250 Matter Stores 300 Matter Capacity 300 Sight Range 16 Terrain Scan Range 16 Terrain Scan Density 10 Evasion (%) 41 Targeting Accuracy 5 Recoil Reduction 2 Item Schematics ----------------- None Robot Schematics ------------------ None Fabricated ------------ Nothing Alien Tech Used ----------------- None Achievements -------------- None Challenges ------------ None Game ------ Seed BombTiamatBank Manual? 0 Play Time 00:20:49 Cumulative 61.9 hours Start 2024.09.12 @ 17:37:58 End 2024.09.12 @ 17:57:14 Sessions 1 Manual Loads 0 Difficulty Rogue Special Mode None Game No. 87 Rogue 87 Adventurer 0 Explorer 0 Win Type - Total 1 Types 1/0/0/0/0/0/0/0/0 Lore% 14 Gallery% 50 Achievement% 39 Wizard Run 0 Options --------- Layout 0 ASCII 0 Keyboard 0 Movement Mouse Keybinds 1 Fullscreen 1 Font 18/SmallcapsGlow Map View 76x50 Zoom Use 0% Tactical HUD 1 Map Filters NONE Filters NONE Steam 1 RUN: aad57a71-3b62-4f9d-8005-00af893f1207